[Event "*** Titled Tuesday 3|2 Blitz"]
[Site "Chess.com"]
[Date "2016.01.05"]
[Round "8"]
[White "FairChess_on_YouTube"]
[Black "Anton_Demchenko"]
[Result "1-0"]
[WhiteElo "2801"]
[BlackElo "2678"]
[TimeControl "180+2"]
[EndTime "12:45:19 PST"]
[Termination "FairChess_on_YouTube won by resignation"]

1. e4 {[%clk 0:03:01.9]} 1... e5 {[%clk 0:02:59.1]} 2. Nf3 {[%clk 0:03:02.4]}
2... Nc6 {[%clk 0:03:00.3]} 3. Bb5 {[%clk 0:03:00]} 3... g6 {[%clk 0:03:01.2]}
4. O-O {[%clk 0:02:55.4]} 4... Bg7 {[%clk 0:03:00.1]} 5. c3 {[%clk 0:02:56.6]}
5... a6 {[%clk 0:03:01.3]} 6. Bc4 {[%clk 0:02:55]} 6... Nf6 {[%clk 0:02:54.7]}
7. d4 {[%clk 0:02:48.9]} 7... d6 {[%clk 0:02:03.3]} 8. dxe5 {[%clk 0:02:48.5]}
8... dxe5 {[%clk 0:02:04]} 9. Qxd8+ {[%clk 0:02:44.6]} 9... Nxd8 {[%clk
0:02:05.9]} 10. Nxe5 {[%clk 0:02:44.5]} 10... Nxe4 {[%clk 0:01:57.1]} 11. Re1
{[%clk 0:02:43.2]} 11... f5 {[%clk 0:01:44.1]} 12. Nd2 {[%clk 0:02:20.7]} 12...
Bxe5 {[%clk 0:01:26.1]} 13. Nxe4 {[%clk 0:02:20.5]} 13... fxe4 {[%clk
0:01:27.2]} 14. Rxe4 {[%clk 0:02:21.9]} 14... Nc6 {[%clk 0:01:26.9]} 15. Bf4
{[%clk 0:02:09.8]} 15... Bf5 {[%clk 0:01:21.5]} 16. Rxe5+ {[%clk 0:01:36.7]}
16... Nxe5 {[%clk 0:01:22.3]} 17. Bxe5 {[%clk 0:01:38.3]} 17... Rf8 {[%clk
0:01:23.8]} 18. Bg7 {[%clk 0:01:33.1]} 18... Rf7 {[%clk 0:01:21.2]} 19. Bxf7+
{[%clk 0:01:33.8]} 19... Kxf7 {[%clk 0:01:22.3]} 20. Bd4 {[%clk 0:01:33.9]}
20... Re8 {[%clk 0:01:20.4]} 21. Be3 {[%clk 0:01:35]} 21... Rd8 {[%clk
0:01:21.5]} 22. Kf1 {[%clk 0:01:27.5]} 22... a5 {[%clk 0:01:16.8]} 23. Rc1
{[%clk 0:01:17.4]} 23... b5 {[%clk 0:01:12.7]} 24. f3 {[%clk 0:01:18.1]} 24...
a4 {[%clk 0:01:13]} 25. Kf2 {[%clk 0:01:15.6]} 25... Be6 {[%clk 0:01:13.9]} 26.
a3 {[%clk 0:01:16.7]} 26... Bb3 {[%clk 0:01:09.1]} 27. Bd4 {[%clk 0:01:09.7]}
27... Re8 {[%clk 0:00:52.4]} 28. g4 {[%clk 0:01:04.6]} 28... Bc4 {[%clk
0:00:52.9]} 29. Be3 {[%clk 0:01:05.5]} 29... Rd8 {[%clk 0:00:49.2]} 30. Re1
{[%clk 0:01:00.5]} 30... Rd3 {[%clk 0:00:46.3]} 31. Bg5 {[%clk 0:00:56.9]} 31...
Bd5 {[%clk 0:00:28.3]} 32. Re7+ {[%clk 0:00:54.4]} 32... Kf8 {[%clk 0:00:29.5]}
33. Rxh7 {[%clk 0:00:35.9]} 33... Rxf3+ {[%clk 0:00:28.7]} 34. Ke1 {[%clk
0:00:36.7]} 34... c6 {[%clk 0:00:22]} 35. Rc7 {[%clk 0:00:19.8]} 35... Rh3
{[%clk 0:00:20.1]} 36. Bf4 {[%clk 0:00:20.4]} 36... Rf3 {[%clk 0:00:21]} 37.
Bd6+ {[%clk 0:00:19.3]} 37... Kg8 {[%clk 0:00:22.3]} 38. h4 {[%clk 0:00:17.7]}
38... Rh3 {[%clk 0:00:22.1]} 39. Be7 {[%clk 0:00:18.3]} 39... Rg3 {[%clk
0:00:21.3]} 40. g5 {[%clk 0:00:19.6]} 40... Rh3 {[%clk 0:00:21.5]} 41. Bf6
{[%clk 0:00:20.5]} 41... Be4 {[%clk 0:00:18.9]} 42. Kd2 {[%clk 0:00:17.1]} 42...
Rxh4 {[%clk 0:00:19.2]} 43. Ke3 {[%clk 0:00:18.7]} 43... Kf8 {[%clk 0:00:18.5]}
44. Bg7+ {[%clk 0:00:14]} 44... Ke8 {[%clk 0:00:17.7]} 45. Bf6 {[%clk
0:00:15.5]} 45... Kf8 {[%clk 0:00:19.1]} 46. Kd4 {[%clk 0:00:11]} 46... Bd5+
{[%clk 0:00:15.6]} 47. Kc5 {[%clk 0:00:11.8]} 47... Rh2 {[%clk 0:00:16.3]} 48.
c4 {[%clk 0:00:08.9]} 48... Bxc4 {[%clk 0:00:13]} 49. Kxc6 {[%clk 0:00:09.2]}
49... Rd2 {[%clk 0:00:11.4]} 50. Kb6 {[%clk 0:00:08.1]} 50... Rd6+ {[%clk
0:00:11.1]} 51. Kc5 {[%clk 0:00:08.4]} 51... Rd5+ {[%clk 0:00:12.3]} 52. Kb4
{[%clk 0:00:10]} 52... Bd3 {[%clk 0:00:09]} 53. Rg7 {[%clk 0:00:08.1]} 53... Rf5
{[%clk 0:00:04.8]} 54. Rd7 {[%clk 0:00:07.5]} 54... Rf4+ {[%clk 0:00:05.5]} 55.
Kc5 {[%clk 0:00:07.9]} 55... Bc4 {[%clk 0:00:06.6]} 56. Kd6 {[%clk 0:00:06.5]}
56... Rf1 {[%clk 0:00:05.3]} 57. Rd8+ {[%clk 0:00:07.7]} 57... Kf7 {[%clk
0:00:05.9]} 58. Rd7+ {[%clk 0:00:09.3]} 58... Kf8 {[%clk 0:00:07.3]} 59. Rg7
{[%clk 0:00:10.4]} 59... Bd3 {[%clk 0:00:06]} 60. Rh7 {[%clk 0:00:09.2]} 60...
Rd1 {[%clk 0:00:06.7]} 61. Kc5 {[%clk 0:00:09.3]} 61... Rc1+ {[%clk 0:00:07]}
62. Kd4 {[%clk 0:00:10.6]} 62... Bf5 {[%clk 0:00:07.7]} 63. Rb7 {[%clk
0:00:12.2]} 63... Rc4+ {[%clk 0:00:05.3]} 64. Ke5 {[%clk 0:00:11.4]} 64... Rc5+
{[%clk 0:00:03.5]} 65. Kd6 {[%clk 0:00:12.5]} 65... Rc1 {[%clk 0:00:03.8]} 66.
Rb8+ {[%clk 0:00:13.4]} 66... Kf7 {[%clk 0:00:04.7]} 67. Rb7+ {[%clk 0:00:15.1]}
67... Kf8 {[%clk 0:00:06.2]} 68. Rxb5 {[%clk 0:00:16.7]} 68... Rd1+ {[%clk
0:00:06.9]} 69. Kc7 {[%clk 0:00:17.5]} 69... Rc1+ {[%clk 0:00:07.8]} 70. Kb6
{[%clk 0:00:18]} 70... Rc4 {[%clk 0:00:08.9]} 71. Ka5 {[%clk 0:00:18.5]} 71...
Bc2 {[%clk 0:00:09.4]} 72. Rb7 {[%clk 0:00:17.6]} 72... Ke8 {[%clk 0:00:10.1]}
73. Re7+ {[%clk 0:00:17.5]} 73... Kf8 {[%clk 0:00:10.8]} 74. Kb5 {[%clk
0:00:18.4]} 74... Bd3 {[%clk 0:00:09.6]} 75. Re3 {[%clk 0:00:17.8]} 75... Bf1
{[%clk 0:00:07.6]} 76. Ka5 {[%clk 0:00:18.3]} 76... Rf4 {[%clk 0:00:07.3]} 77.
Be7+ {[%clk 0:00:14.9]} 77... Kf7 {[%clk 0:00:07.7]} 78. Bf6 {[%clk 0:00:15.8]}
78... Kf8 {[%clk 0:00:05.6]} 79. Re5 {[%clk 0:00:15.8]} 79... Bd3 {[%clk
0:00:05.3]} 80. Rc5 {[%clk 0:00:15.3]} 80... Be2 {[%clk 0:00:04.7]} 81. Rd5
{[%clk 0:00:15.2]} 81... Kf7 {[%clk 0:00:04.6]} 82. Rd7+ {[%clk 0:00:15.5]}
82... Kf8 {[%clk 0:00:05.5]} 83. Rh7 {[%clk 0:00:16.3]} 83... Bd3 {[%clk
0:00:05.6]} 84. Kb6 {[%clk 0:00:17.6]} 84... Bc2 {[%clk 0:00:06.3]} 85. Kc5
{[%clk 0:00:18.4]} 85... Bb3 {[%clk 0:00:07]} 86. Kd6 {[%clk 0:00:19.5]} 86...
Rf1 {[%clk 0:00:07.3]} 87. Rg7 {[%clk 0:00:19.9]} 87... Bc2 {[%clk 0:00:07.9]}
88. Rc7 {[%clk 0:00:19.2]} 88... Bb3 {[%clk 0:00:08.3]} 89. Ke5 {[%clk 0:00:20]}
89... Re1+ {[%clk 0:00:08.9]} 90. Kd4 {[%clk 0:00:21.3]} 90... Rd1+ {[%clk
0:00:09.3]} 91. Ke3 {[%clk 0:00:20.4]} 91... Re1+ {[%clk 0:00:10.1]} 92. Kd2
{[%clk 0:00:22]} 92... Rd1+ {[%clk 0:00:11.1]} 93. Ke2 {[%clk 0:00:23.6]} 93...
Rd5 {[%clk 0:00:11.2]} 94. Ke3 {[%clk 0:00:22.7]} 94... Rd1 {[%clk 0:00:11.6]}
95. Rb7 {[%clk 0:00:22.7]} 95... Re1+ {[%clk 0:00:11.5]} 96. Kd4 {[%clk
0:00:22.7]} 96... Rd1+ {[%clk 0:00:12.8]} 97. Kc3 {[%clk 0:00:22.8]} 97... Rc1+
{[%clk 0:00:13.7]} 98. Kb4 {[%clk 0:00:24.4]} 98... Rf1 {[%clk 0:00:13.9]} 99.
Be7+ {[%clk 0:00:23.1]} 99... Ke8 {[%clk 0:00:14.1]} 100. Bf6 {[%clk 0:00:23.7]}
100... Rc1 {[%clk 0:00:13.1]} 101. Rg7 {[%clk 0:00:23.6]} 101... Rc4+ {[%clk
0:00:04.3]} 102. Kb5 {[%clk 0:00:24.4]} 102... Rg4 {[%clk 0:00:03.7]} 103. Rxg6
{[%clk 0:00:24.6]} 103... Kd7 {[%clk 0:00:05.6]} 104. Rg7+ {[%clk 0:00:23.9]}
104... Ke6 {[%clk 0:00:06.7]} 105. Rc7 {[%clk 0:00:23.1]} 105... Kf5 {[%clk
0:00:07.3]} 106. Rc5+ {[%clk 0:00:22]} 106... Kg6 {[%clk 0:00:08.4]} 107. Rc3
{[%clk 0:00:22.9]} 107... Rg1 {[%clk 0:00:09.3]} 108. Rxb3 {[%clk 0:00:18.6]}
108... axb3 {[%clk 0:00:09.4]} 109. a4 {[%clk 0:00:19.3]} 109... Kf5 {[%clk
0:00:07.8]} 110. a5 {[%clk 0:00:18.7]} 110... Ke6 {[%clk 0:00:09.1]} 111. a6
{[%clk 0:00:17.3]} 111... Kd7 {[%clk 0:00:10.5]} 112. Kb6 {[%clk 0:00:18]}
112... Re1 {[%clk 0:00:08.8]} 113. a7 {[%clk 0:00:18.1]} 113... Ra1 {[%clk
0:00:08.5]} 114. g6 {[%clk 0:00:17.8]} 114... Ke6 {[%clk 0:00:09.7]} 115. g7
{[%clk 0:00:18.4]} 115... Kf7 {[%clk 0:00:11.2]} 116. Kb7 {[%clk 0:00:18]}
116... Ra4 {[%clk 0:00:10.6]} 117. Bc3 {[%clk 0:00:18.1]} 117... Ra1 {[%clk
0:00:11.3]} 118. a8=Q {[%clk 0:00:18.2]} 118... Rxa8 {[%clk 0:00:12]} 119. Kxa8
{[%clk 0:00:19.8]} 1-0

[Event "*** Titled Tuesday 3|2 Blitz"]
[Site "Chess.com"]
[Date "2016.01.05"]
[Round "9"]
[White "stefanodinn"]
[Black "alturas_pacificas"]
[Result "1-0"]
[WhiteElo "2154"]
[BlackElo "2062"]
[TimeControl "180+2"]
[EndTime "12:50:44 PST"]
[Termination "stefanodinn won by resignation"]

1. e4 {[%clk 0:03:01.9]} 1... g6 {[%clk 0:02:55.7]} 2. d4 {[%clk 0:02:59.5]}
2... Bg7 {[%clk 0:02:49.3]} 3. g3 {[%clk 0:03:00]} 3... d5 {[%clk 0:02:45.8]} 4.
e5 {[%clk 0:02:59.8]} 4... c5 {[%clk 0:02:46.6]} 5. c3 {[%clk 0:03:00]} 5...
cxd4 {[%clk 0:02:47.3]} 6. cxd4 {[%clk 0:03:00.3]} 6... Nc6 {[%clk 0:02:49.2]}
7. Bg2 {[%clk 0:02:59.7]} 7... f6 {[%clk 0:02:49.6]} 8. f4 {[%clk 0:02:59.1]}
8... fxe5 {[%clk 0:02:49.6]} 9. dxe5 {[%clk 0:02:57.5]} 9... e6 {[%clk
0:02:47.8]} 10. Nf3 {[%clk 0:02:57.7]} 10... Nge7 {[%clk 0:02:49.2]} 11. O-O
{[%clk 0:02:57.5]} 11... O-O {[%clk 0:02:50.7]} 12. Nc3 {[%clk 0:02:55.8]} 12...
b6 {[%clk 0:02:37.8]} 13. Kh1 {[%clk 0:02:55.8]} 13... Bb7 {[%clk 0:02:33.1]}
14. Be3 {[%clk 0:02:55.5]} 14... Nf5 {[%clk 0:02:28.9]} 15. Bf2 {[%clk
0:02:55.8]} 15... d4 {[%clk 0:02:19.8]} 16. Nb5 {[%clk 0:02:41.4]} 16... Ne3
{[%clk 0:02:15.6]} 17. Bxe3 {[%clk 0:02:39.6]} 17... dxe3 {[%clk 0:02:17.5]} 18.
Re1 {[%clk 0:02:34.7]} 18... Qxd1 {[%clk 0:02:07.5]} 19. Raxd1 {[%clk
0:02:34.5]} 19... Nb4 {[%clk 0:01:51.2]} 20. Nd6 {[%clk 0:02:24.7]} 20... Bd5
{[%clk 0:01:46.3]} 21. a3 {[%clk 0:02:22]} 21... Nc2 {[%clk 0:01:46.7]} 22. Re2
{[%clk 0:02:21.9]} 22... Rac8 {[%clk 0:01:41.5]} 23. Nxc8 {[%clk 0:02:03.5]}
23... Rxc8 {[%clk 0:01:43.4]} 24. Ng5 {[%clk 0:02:02.3]} 24... Bxg2+ {[%clk
0:01:40.8]} 25. Kxg2 {[%clk 0:02:02.1]} 25... Bf8 {[%clk 0:01:08.8]} 26. Nxe6
{[%clk 0:02:01]} 26... Kf7 {[%clk 0:01:09.1]} 27. Nxf8 {[%clk 0:02:01]} 27...
Kxf8 {[%clk 0:01:11]} 28. Rc1 {[%clk 0:01:58.7]} 1-0

[Event "*** Titled Tuesday 3|2 Blitz"]
[Site "Chess.com"]
[Date "2016.01.05"]
[Round "9"]
[White "tac49"]
[Black "motivated_bishop"]
[Result "1-0"]
[WhiteElo "2450"]
[BlackElo "2268"]
[TimeControl "180+2"]
[EndTime "12:51:56 PST"]
[Termination "tac49 won by resignation"]

1. e4 {[%clk 0:03:00.3]} 1... e5 {[%clk 0:02:59.5]} 2. Nc3 {[%clk 0:03:01.8]}
2... Nf6 {[%clk 0:03:00.1]} 3. Nf3 {[%clk 0:03:03.7]} 3... Nc6 {[%clk
0:03:01.2]} 4. d4 {[%clk 0:03:04.8]} 4... exd4 {[%clk 0:03:02.5]} 5. Nxd4 {[%clk
0:03:06.7]} 5... Bb4 {[%clk 0:03:04.2]} 6. Nxc6 {[%clk 0:03:05.9]} 6... bxc6
{[%clk 0:03:06.1]} 7. Bd3 {[%clk 0:03:06.6]} 7... d5 {[%clk 0:03:07.3]} 8. exd5
{[%clk 0:03:03.1]} 8... O-O {[%clk 0:03:08.4]} 9. O-O {[%clk 0:03:05]} 9... cxd5
{[%clk 0:03:09.6]} 10. h3 {[%clk 0:03:05.8]} 10... c6 {[%clk 0:03:09.5]} 11. Qf3
{[%clk 0:03:03.2]} 11... Re8 {[%clk 0:03:10.3]} 12. Bf4 {[%clk 0:03:02.3]} 12...
Bd6 {[%clk 0:03:05.7]} 13. Rfe1 {[%clk 0:03:02]} 13... Be6 {[%clk 0:03:05.2]}
14. Ne2 {[%clk 0:03:01.4]} 14... Qb8 {[%clk 0:03:02.6]} 15. b3 {[%clk
0:02:59.6]} 15... Bd7 {[%clk 0:02:47.3]} 16. Bxd6 {[%clk 0:02:40.6]} 16... Qxd6
{[%clk 0:02:48.2]} 17. Rad1 {[%clk 0:02:42]} 17... Qa3 {[%clk 0:02:16.5]} 18.
Qf4 {[%clk 0:02:14.5]} 18... Qxa2 {[%clk 0:01:53.1]} 19. Ra1 {[%clk 0:02:12.2]}
19... Qb2 {[%clk 0:01:53.7]} 20. c3 {[%clk 0:01:57.6]} 20... Ne4 {[%clk
0:01:15.9]} 21. Qc7 {[%clk 0:00:56.1]} 21... Nxc3 {[%clk 0:01:15.2]} 22. Qxd7
{[%clk 0:00:52.7]} 22... Nxe2+ {[%clk 0:01:14.4]} 23. Bxe2 {[%clk 0:00:53.2]}
23... Rxe2 {[%clk 0:01:15.4]} 24. Rxe2 {[%clk 0:00:52.9]} 24... Qxa1+ {[%clk
0:01:12.4]} 25. Kh2 {[%clk 0:00:53.4]} 25... Qf6 {[%clk 0:01:13]} 26. Qe8+
{[%clk 0:00:49.9]} 1-0

[Event "*** Titled Tuesday 3|2 Blitz"]
[Site "Chess.com"]
[Date "2016.01.05"]
[Round "9"]
[White "BIG_Pirate"]
[Black "MapleDanish"]
[Result "0-1"]
[WhiteElo "2194"]
[BlackElo "2091"]
[TimeControl "180+2"]
[EndTime "12:51:56 PST"]
[Termination "MapleDanish won by resignation"]

1. Nf3 {[%clk 0:03:01.9]} 1... d5 {[%clk 0:03:00.6]} 2. c4 {[%clk 0:03:02.7]}
2... e6 {[%clk 0:03:01.7]} 3. d4 {[%clk 0:03:03.2]} 3... Nf6 {[%clk 0:03:03.1]}
4. Nc3 {[%clk 0:03:02.4]} 4... Be7 {[%clk 0:03:04.5]} 5. Bf4 {[%clk 0:03:02.9]}
5... O-O {[%clk 0:03:05.7]} 6. e3 {[%clk 0:03:04.1]} 6... Nbd7 {[%clk
0:03:07.2]} 7. Rc1 {[%clk 0:02:56.8]} 7... c5 {[%clk 0:03:07.5]} 8. cxd5 {[%clk
0:02:56.3]} 8... Nxd5 {[%clk 0:03:08]} 9. Nxd5 {[%clk 0:02:53.5]} 9... exd5
{[%clk 0:03:09.9]} 10. dxc5 {[%clk 0:02:53.6]} 10... Nxc5 {[%clk 0:03:11.4]} 11.
a3 {[%clk 0:02:54.5]} 11... Bg4 {[%clk 0:03:08.2]} 12. Be2 {[%clk 0:02:55]}
12... Ne6 {[%clk 0:03:09.6]} 13. Be5 {[%clk 0:02:55.2]} 13... Bf6 {[%clk
0:03:08.9]} 14. Bxf6 {[%clk 0:02:52.7]} 14... Qxf6 {[%clk 0:03:10.8]} 15. O-O
{[%clk 0:02:50.9]} 15... Rad8 {[%clk 0:03:06.9]} 16. Rc2 {[%clk 0:01:00.9]}
16... d4 {[%clk 0:03:02.2]} 17. Nxd4 {[%clk 0:00:42.4]} 17... Nxd4 {[%clk
0:03:00.9]} 18. exd4 {[%clk 0:00:41.2]} 18... Rxd4 {[%clk 0:03:00]} 19. Qc1
{[%clk 0:00:41.9]} 19... h6 {[%clk 0:02:37.9]} 20. Bxg4 {[%clk 0:00:29.4]} 20...
Rxg4 {[%clk 0:02:38]} 21. Rc7 {[%clk 0:00:31]} 21... Qf3 {[%clk 0:02:29.1]} 22.
g3 {[%clk 0:00:32]} 22... Rd8 {[%clk 0:02:13.7]} 23. Re1 {[%clk 0:00:24]} 23...
Rgd4 {[%clk 0:02:12.2]} 24. Rc8 {[%clk 0:00:20.6]} 24... Kh7 {[%clk 0:01:54.6]}
25. Qc2+ {[%clk 0:00:13.6]} 25... g6 {[%clk 0:01:55.9]} 26. Rxd8 {[%clk
0:00:11.7]} 26... Rxd8 {[%clk 0:01:57.3]} 27. h4 {[%clk 0:00:10.3]} 27... h5
{[%clk 0:01:56.4]} 28. Qc4 {[%clk 0:00:06.8]} 28... Rd2 {[%clk 0:01:54.1]} 29.
Re3 {[%clk 0:00:02]} 29... Qxf2+ {[%clk 0:01:54.2]} 0-1

[Event "*** Titled Tuesday 3|2 Blitz"]
[Site "Chess.com"]
[Date "2016.01.05"]
[Round "9"]
[White "DaPazz"]
[Black "Quiet_Desperation"]
[Result "0-1"]
[WhiteElo "1865"]
[BlackElo "2106"]
[TimeControl "180+2"]
[EndTime "12:52:38 PST"]
[Termination "Quiet_Desperation won by checkmate"]

1. e4 {[%clk 0:03:01.9]} 1... e6 {[%clk 0:03:01]} 2. Qe2 {[%clk 0:03:00.3]} 2...
c5 {[%clk 0:02:18.2]} 3. g3 {[%clk 0:02:57.9]} 3... Nc6 {[%clk 0:02:19.2]} 4.
Bg2 {[%clk 0:02:59.3]} 4... d6 {[%clk 0:02:20.6]} 5. Nc3 {[%clk 0:02:59.7]} 5...
g6 {[%clk 0:02:21.9]} 6. d3 {[%clk 0:03:00.8]} 6... Bg7 {[%clk 0:02:22]} 7. Be3
{[%clk 0:03:02.2]} 7... Nge7 {[%clk 0:02:22.8]} 8. Qd2 {[%clk 0:03:01.6]} 8...
h6 {[%clk 0:02:19.4]} 9. Nge2 {[%clk 0:03:01.6]} 9... Bd7 {[%clk 0:02:20.6]} 10.
O-O {[%clk 0:03:02.2]} 10... Qc7 {[%clk 0:02:21]} 11. a3 {[%clk 0:03:00.9]}
11... a6 {[%clk 0:02:22.2]} 12. Rab1 {[%clk 0:03:01]} 12... h5 {[%clk
0:02:21.5]} 13. h3 {[%clk 0:03:00.9]} 13... h4 {[%clk 0:02:20.9]} 14. g4 {[%clk
0:03:01.4]} 14... f5 {[%clk 0:02:16.4]} 15. exf5 {[%clk 0:02:56.5]} 15... gxf5
{[%clk 0:02:17]} 16. d4 {[%clk 0:02:51.1]} 16... cxd4 {[%clk 0:02:09.2]} 17.
Nxd4 {[%clk 0:02:51.3]} 17... fxg4 {[%clk 0:02:10.4]} 18. hxg4 {[%clk
0:02:44.2]} 18... h3 {[%clk 0:02:10.4]} 19. Bf3 {[%clk 0:02:36.2]} 19... Ne5
{[%clk 0:02:08]} 20. Ne4 {[%clk 0:02:22.3]} 20... Nxf3+ {[%clk 0:02:04.4]} 21.
Nxf3 {[%clk 0:02:22.4]} 21... d5 {[%clk 0:01:44]} 22. Ng3 {[%clk 0:02:11.2]}
22... O-O-O {[%clk 0:01:35]} 23. Bf4 {[%clk 0:01:51.2]} 23... e5 {[%clk
0:01:32.7]} 24. Bg5 {[%clk 0:01:50.4]} 24... Bxg4 {[%clk 0:01:31.4]} 25. Nh2
{[%clk 0:01:44.6]} 25... Be6 {[%clk 0:01:26.5]} 26. Qb4 {[%clk 0:01:32.4]} 26...
Nc6 {[%clk 0:01:24.8]} 27. Qa4 {[%clk 0:01:21.9]} 27... Rdg8 {[%clk 0:01:23.8]}
28. c4 {[%clk 0:01:17.9]} 28... Bf8 {[%clk 0:01:16.8]} 29. cxd5 {[%clk
0:01:16.8]} 29... Bxd5 {[%clk 0:01:16.7]} 30. Be3 {[%clk 0:01:08.6]} 30... e4
{[%clk 0:01:06.9]} 31. Rfe1 {[%clk 0:00:40.6]} 31... Rxg3+ {[%clk 0:01:06.6]}
32. fxg3 {[%clk 0:00:41.7]} 32... Qxg3+ {[%clk 0:01:07.2]} 33. Kh1 {[%clk
0:00:43.2]} 33... Qg2# {[%clk 0:01:08.2]} 0-1

[Event "*** Titled Tuesday 3|2 Blitz"]
[Site "Chess.com"]
[Date "2016.01.05"]
[Round "9"]
[White "Danirod"]
[Black "AsafGivon"]
[Result "0-1"]
[WhiteElo "2378"]
[BlackElo "2296"]
[TimeControl "180+2"]
[EndTime "12:53:11 PST"]
[Termination "AsafGivon won by resignation"]

1. e4 {[%clk 0:03:01.9]} 1... c5 {[%clk 0:03:00.5]} 2. Nf3 {[%clk 0:03:02.8]}
2... e6 {[%clk 0:03:01.2]} 3. c3 {[%clk 0:03:03.6]} 3... d5 {[%clk 0:03:01.5]}
4. exd5 {[%clk 0:03:05.1]} 4... exd5 {[%clk 0:03:03.4]} 5. d4 {[%clk 0:03:06.3]}
5... a6 {[%clk 0:03:04.4]} 6. Bd3 {[%clk 0:03:07.6]} 6... Nc6 {[%clk 0:03:02.3]}
7. O-O {[%clk 0:03:08.3]} 7... c4 {[%clk 0:02:55.8]} 8. Bc2 {[%clk 0:03:09.3]}
8... Bd6 {[%clk 0:02:56]} 9. Bg5 {[%clk 0:03:09]} 9... Nge7 {[%clk 0:02:54]} 10.
b3 {[%clk 0:03:10.3]} 10... b5 {[%clk 0:02:53.7]} 11. a4 {[%clk 0:03:10.9]}
11... Rb8 {[%clk 0:02:45.7]} 12. axb5 {[%clk 0:03:11.8]} 12... axb5 {[%clk
0:02:47.2]} 13. bxc4 {[%clk 0:03:12.8]} 13... bxc4 {[%clk 0:02:48.3]} 14. Ba4
{[%clk 0:03:11.1]} 14... Bd7 {[%clk 0:02:46.4]} 15. Re1 {[%clk 0:03:04.9]} 15...
O-O {[%clk 0:02:46.3]} 16. Na3 {[%clk 0:02:57.7]} 16... f6 {[%clk 0:02:45.4]}
17. Bh4 {[%clk 0:02:58.5]} 17... Nf5 {[%clk 0:02:35]} 18. Bg3 {[%clk 0:02:59.6]}
18... Nxg3 {[%clk 0:02:36]} 19. hxg3 {[%clk 0:03:01.5]} 19... Na5 {[%clk
0:02:24.5]} 20. Bc2 {[%clk 0:02:48.7]} 20... Nb3 {[%clk 0:02:23.2]} 21. Ra2
{[%clk 0:02:49.6]} 21... Re8 {[%clk 0:01:52.9]} 22. Nb1 {[%clk 0:02:40.9]} 22...
Rxe1+ {[%clk 0:01:45.5]} 23. Qxe1 {[%clk 0:02:42.1]} 23... Ra8 {[%clk
0:01:11.4]} 24. Rxa8 {[%clk 0:02:37.3]} 24... Qxa8 {[%clk 0:01:13.3]} 25. Nbd2
{[%clk 0:02:38.8]} 25... Qa3 {[%clk 0:00:43.3]} 26. Qb1 {[%clk 0:02:01.2]} 26...
Qc1+ {[%clk 0:00:41.8]} 27. Kh2 {[%clk 0:01:50.7]} 27... Qxb1 {[%clk 0:00:38.5]}
28. Nxb1 {[%clk 0:01:49.2]} 28... Bc7 {[%clk 0:00:26.3]} 29. Kg1 {[%clk
0:01:49.4]} 29... Ba5 {[%clk 0:00:21.5]} 30. Kf1 {[%clk 0:01:50.4]} 30... Na1
{[%clk 0:00:20.6]} 31. Ba4 {[%clk 0:01:42.3]} 31... Bxa4 {[%clk 0:00:21.3]} 32.
Ke2 {[%clk 0:01:41.9]} 32... Bc2 {[%clk 0:00:22.3]} 33. Nfd2 {[%clk 0:01:41.7]}
33... Nb3 {[%clk 0:00:23]} 34. Na3 {[%clk 0:01:40.1]} 34... Bd3+ {[%clk
0:00:22.2]} 35. Ke3 {[%clk 0:01:40.7]} 35... Nxd2 {[%clk 0:00:20.5]} 36. Kxd2
{[%clk 0:01:41.3]} 36... Bf1 {[%clk 0:00:21.2]} 37. Nb5 {[%clk 0:01:40.6]} 37...
Bxg2 {[%clk 0:00:22.2]} 38. Nd6 {[%clk 0:01:41.9]} 38... Kf8 {[%clk 0:00:17.3]}
39. Nf5 {[%clk 0:01:41.1]} 39... Be4 {[%clk 0:00:16.5]} 40. Ne3 {[%clk
0:01:40.7]} 40... h5 {[%clk 0:00:16.9]} 41. Nd1 {[%clk 0:01:40]} 41... Kf7
{[%clk 0:00:17.7]} 42. Ne3 {[%clk 0:01:41.4]} 42... Ke6 {[%clk 0:00:18.6]} 43.
Nd1 {[%clk 0:01:39.9]} 43... g5 {[%clk 0:00:19.5]} 44. Ne3 {[%clk 0:01:41.1]}
44... h4 {[%clk 0:00:20.6]} 45. gxh4 {[%clk 0:01:40.3]} 45... gxh4 {[%clk
0:00:22.5]} 0-1

[Event "*** Titled Tuesday 3|2 Blitz"]
[Site "Chess.com"]
[Date "2016.01.05"]
[Round "9"]
[White "chorejason"]
[Black "wilju"]
[Result "0-1"]
[WhiteElo "1875"]
[BlackElo "1845"]
[TimeControl "180+2"]
[EndTime "12:53:41 PST"]
[Termination "wilju won by resignation"]

1. e4 {[%clk 0:03:01.9]} 1... e5 {[%clk 0:03:00]} 2. d4 {[%clk 0:03:02.3]} 2...
exd4 {[%clk 0:02:59.5]} 3. c3 {[%clk 0:03:03.2]} 3... dxc3 {[%clk 0:02:59.5]} 4.
Bc4 {[%clk 0:03:03.8]} 4... Nc6 {[%clk 0:02:57.5]} 5. Nf3 {[%clk 0:02:54.8]}
5... Bd6 {[%clk 0:02:17.9]} 6. O-O {[%clk 0:02:41.9]} 6... Nf6 {[%clk
0:02:07.5]} 7. Re1 {[%clk 0:02:19]} 7... Ne5 {[%clk 0:02:00.8]} 8. Nxe5 {[%clk
0:02:12.4]} 8... Bxe5 {[%clk 0:01:59.8]} 9. Nxc3 {[%clk 0:02:05.9]} 9... d6
{[%clk 0:01:57.2]} 10. f4 {[%clk 0:02:05.9]} 10... Bxc3 {[%clk 0:01:56.2]} 11.
bxc3 {[%clk 0:02:07.8]} 11... O-O {[%clk 0:01:56.7]} 12. Rb1 {[%clk 0:02:07.2]}
12... c6 {[%clk 0:01:56]} 13. Qf3 {[%clk 0:01:56.4]} 13... Bg4 {[%clk
0:01:53.6]} 14. Qg3 {[%clk 0:01:53.9]} 14... b5 {[%clk 0:01:50.4]} 15. Bd3
{[%clk 0:01:50.7]} 15... Re8 {[%clk 0:01:48.1]} 16. e5 {[%clk 0:01:31.3]} 16...
dxe5 {[%clk 0:01:29.5]} 17. fxe5 {[%clk 0:01:32.5]} 17... Nh5 {[%clk 0:01:24.7]}
18. Qxg4 {[%clk 0:01:33.2]} 18... Qxd3 {[%clk 0:01:23]} 19. Be3 {[%clk 0:01:13]}
19... g6 {[%clk 0:01:19.3]} 20. Bd4 {[%clk 0:01:12.1]} 20... Rad8 {[%clk
0:01:13.4]} 21. Rbd1 {[%clk 0:01:12.5]} 21... Qc4 {[%clk 0:01:10.6]} 22. Qg5
{[%clk 0:01:09.9]} 22... c5 {[%clk 0:01:05.1]} 23. Bf2 {[%clk 0:00:49.3]} 23...
Rxd1 {[%clk 0:01:03.1]} 24. Rxd1 {[%clk 0:00:50.5]} 24... Qxc3 {[%clk
0:01:03.2]} 25. g4 {[%clk 0:00:46.5]} 25... Ng7 {[%clk 0:00:59.7]} 26. Rd7
{[%clk 0:00:45.9]} 26... Qxe5 {[%clk 0:00:52.6]} 27. Qd2 {[%clk 0:00:30.5]}
27... Ne6 {[%clk 0:00:42.8]} 28. Bg3 {[%clk 0:00:26.9]} 28... Qe4 {[%clk
0:00:37.1]} 29. Qf2 {[%clk 0:00:26]} 29... Ng5 {[%clk 0:00:33.7]} 30. h4 {[%clk
0:00:20.6]} 30... Nh3+ {[%clk 0:00:32.1]} 0-1